Cogmind - Beta 17 @@@ ROGUE MODE // 2026.06.24 @ 23:25:56 Player: Ceorik Result: Self-destructed Performance ------------- Evolutions (2) 1000 Regions Visited (4) 800 Robots Destroyed (45) 225 Value Destroyed (995) 995 Prototype IDs (17) 340 Alien Tech Used (0) 0 Bonus (0) 0 TOTAL SCORE: 3360 Bonus ------- None Cogmind --------- Core Integrity 536/550 Matter 300/300 Energy 125/125 System Corruption 0% Temperature Cool (0) Movement Rolling (105) Ox1 Location -8/Materials Parts ------- > --- POWER (1) -------- Light Ion Engine (fused) > --- PROPULSION (3) --- Light Treads Armored Wheel (fused) Armored Wheel (fused) > --- UTILITY (4) ------ Large Storage Unit Advanced Targeting Computer Light Armor Plating Self-contained Transmogrifier > --- WEAPON (3) ------- Minigun Barrage Gun Power Maul (fused) > --- INVENTORY (15) --- Light Deuterium Engine Nuclear Core Nuclear Core Light Treads Improved Heat Sink Large Storage Unit Medium Matter Pod (100) Compact Matter Pod (117) Power Bank EM Pulse Cannon Heavy Assault Rifle Battle Cannon Grenade Launcher Grenade Launcher Makeshift Axe Peak State ------------ > --- POWER ------------ Light Ion Engine > --- PROPULSION ------- Light Treads Armored Wheel Armored Wheel > --- UTILITY ---------- Large Storage Unit Advanced Targeting Computer Light Armor Plating Self-contained Transmogrifier > --- WEAPON ----------- Minigun Barrage Gun Power Maul > --- INVENTORY -------- Improved Ion Engine Light Deuterium Engine Nuclear Core Light Nuclear Core Improved Heat Sink Large Storage Unit Medium Matter Pod Compact Matter Pod Power Bank EM Pulse Cannon Heavy Assault Rifle Battle Cannon Grenade Launcher Grenade Launcher Makeshift Axe [Rating: 34] Favorites ----------- Power Ion Engine Engine Ion Engine Propulsion Light Treads Treads Light Treads Leg Aluminum Leg Wheel Wheel Utility Large Storage Unit Device Improved Heat Sink Storage Large Storage Unit Processor Advanced Targeting Computer Protection Light Armor Plating Weapon Assault Rifle Energy Gun Field Laser Ballistic Gun Assault Rifle Ballistic Cannon Battle Cannon Launcher Grenade Launcher Special Weapon Multitool Impact Weapon Power Maul Slashing Weapon Makeshift Axe Build | -11 -10 -10 -10 -8 ------- Run | Yrd Mat Min Sub Mat Slots Evolved 4 | . . . . 4 Power . | . . . . . Propulsion 1 | . . . . 1 Utility 2 | . . . . 2 Weapon 1 | . . . . 1 Parts Attached 29 | 2 6 3 11 7 Power 2 | . 1 . 1 . Engine 2 | . 1 . 1 . Core . | . . . . . Reactor . | . . . . . Propulsion 8 | 2 . 1 3 2 Treads 4 | 2 . . . 2 Leg . | . . . . . Wheel 4 | . . 1 3 . Hover . | . . . . . Flight . | . . . . . Utility 6 | . 2 . 1 3 Device 2 | . 1 . 1 . Storage 1 | . 1 . . . Processor 1 | . . . . 1 Hackware . | . . . . . Protection 2 | . . . . 2 Artifact . | . . . . . Weapon 13 | . 3 2 6 2 Energy Gun 1 | . . . 1 . Energy Cannon . | . . . . . Ballistic Gun 8 | . 2 2 2 2 Ballistic Cannon 2 | . . . 2 . Launcher 1 | . 1 . . . Special Weapon . | . . . . . Impact Weapon . | . . . . . Slashing Weapon 1 | . . . 1 . Piercing Weapon . | . . . . . Special Melee Weapon . | . . . . . Unidentified Prototypes 1 | . . . 1 . Parts Lost 7 | . . 1 5 1 Power 1 | . . . 1 . Propulsion 5 | . . 1 3 1 Utility . | . . . . . Weapon 1 | . . . 1 . Highest Loss Streak 3 | . . 1 3 1 To Critical Strikes . | . . . . . Average Backups 11 | 4 7 14 13 13 Power 1 | 1 1 2 1 3 Propulsion 1 | 2 1 2 1 . Utility 2 | . . 3 3 4 Weapon 5 | 1 4 6 6 5 Tool/Special . | . . . . . Unused Backups 19 | . 5 2 1 11 Power 6 | . 2 . . 4 Propulsion 1 | . . 1 . . Utility 7 | . 2 . . 5 Weapon 5 | . 1 1 1 2 Tool/Special . | . . . . . Average Slot Usage (%) 97 | . 94 100 99 95 Engine 13 | . 14 14 13 9 Treads 15 | . 27 19 7 5 Wheel 11 | . . 8 20 19 Device 12 | . 9 14 14 9 Storage 13 | . 14 14 14 11 Energy Gun 2 | . 3 . 2 6 Ballistic Gun 23 | . 22 27 22 17 Peak Build Rating 34 | 6 10 15 23 34 Average Rating 14 | 6 8 12 16 30 On Entrance 11 | 6 6 10 15 22 Avg Prop Armor Cover (%) 10 | . . 11 11 7 Naked Turns . | . . . . . Heaviest Build 50 | 11 31 32 32 50 Greatest Support 40 | 40 40 40 20 32 Greatest Overweight (x) 3 | . . 3 3 2 Average Overweight (x) 1 | . . 2 2 1 Largest Inventory Capacity 15 | 8 15 15 15 15 Average Capacity 13 | 8 10 15 15 15 Most Carried 15 | 6 12 15 15 15 Average Carried 12 | 4 7 14 14 13 Final Capacity 15 | 8 15 15 15 15 Final Carried 15 | 4 12 15 14 15 Transmogrified Parts 7 | . . . 2 5 Integrity Recovered 91 | . . . 14 77 Class Distribution -------------------- 92% | Mutant 7% | Gunner Dominant Class ---------------- Mutant | -10/Materials Mutant | -10/Mines Mutant | -10/Subcaves Gunner | -8/Materials Resources | -11 -10 -10 -10 -8 ----------- Run | Yrd Mat Min Sub Mat Matter Collected 1588 | 220 215 339 522 292 Remotely . | . . . . . Salvage Created 1319 | . 444 296 287 292 Parts 88 | . 28 22 22 16 Haulers Intercepted 1 | . 1 . . . Recyclers Shooed 4 | 1 1 2 . . Parts Field Recycled . | . . . . . Retrieved Matter . | . . . . . Parts Self-Destructed 12 | . . . 12 . Prevented . | . . . . . Parts Restored . | . . . . . Kills | -11 -10 -10 -10 -8 ------- Run | Yrd Mat Min Sub Mat Combat Hostiles Destroyed 34 | . 11 6 12 5 Melee 4 | . . . 3 1 Guns 15 | . 5 . 6 4 AOE 15 | . 6 6 3 . Classes Destroyed 10 | . 6 1 2 1 Builder 1 | . . 1 . . Tunneler 3 | . 1 2 . . Hauler 1 | . 1 . . . Recycler 4 | . 1 3 . . Watcher 2 | . 1 . . 1 Swarmer 17 | . 6 6 5 . Grunt 7 | . 5 . . 2 Duelist 1 | . . . . 1 Sentry 3 | . . . 1 2 Subdweller 6 | . . . 6 . Best Kill Streak 8 | . 4 8 3 2 Combat Bots Only 6 | . 3 6 3 2 Max Kills in Single Turn 2 | . 2 2 2 1 Gunslinging . | . . . . . Exploded 2 | . 2 2 2 . Melee 1 | . . . 1 1 Uniques/NPCs Destroyed . | . . . . . Combat | -11 -10 -10 -10 -8 -------- Run | Yrd Mat Min Sub Mat Hostile Shots Fired 116 | . 34 7 55 20 Missed 33 | . 7 4 16 6 Hits 83 | . 27 3 39 14 Projectile 83 | . 27 3 39 14 Critical Strikes 1 | . . . 1 . Damage Taken 1413 | . 398 71 735 209 Core 243 | . 49 21 159 14 Absorbed by Shields . | . . . . . Core Remaining (%) 54 | 100 . . 8 . Volleys Fired 111 | 6 34 18 38 15 Largest 3 | 2 2 2 2 3 Hottest 116 | 90 90 50 91 116 Shots Fired 203 | 12 61 31 59 40 Gun 178 | 12 54 26 46 40 Cannon 11 | . . . 11 . Launcher 14 | . 7 5 2 . Special . | . . . . . Kinetic 155 | . 46 26 53 30 Thermal 34 | 12 8 . 4 10 Explosive 14 | . 7 5 2 . Electromagnetic . | . . . . . Robot Hit Streak 16 | 3 9 11 8 16 Robot Miss Streak 6 | 2 3 2 6 2 Penetration Max . | . . . . . Secondary Targets . | . . . . . Shots Hit Robots 144 | 7 37 19 46 35 Core Hits 69 | 1 25 16 16 11 Critical Kills . | . . . . . Critical Parts Destroyed 1 | . . . . 1 Critical Strikes 5 | 2 . . 2 1 Burn 2 | 2 . . . . Destroy 2 | . . . 2 . Smash 1 | . . . . 1 Melee Attacks 20 | . . . 18 2 Impact 2 | . . . . 2 Slashing 18 | . . . 18 . Piercing . | . . . . . Sneak Attacks . | . . . . . Combat Hostiles . | . . . . . Follow-up Attacks . | . . . . . Damage Inflicted 3362 | 84 916 585 1142 635 Guns 1938 | 84 442 264 555 593 Cannons . | . . . . . Explosions 894 | . 473 321 100 . Melee 529 | . . . 487 42 Ramming 1 | . 1 . . . Kinetic 1609 | . 385 264 503 457 Thermal 329 | 84 57 . 52 136 Explosive 894 | . 473 321 100 . Electromagnetic . | . . . . . Impact 42 | . . . . 42 Slashing 487 | . . . 487 . Piercing . | . . . . . Highest Corruption . | . . . . . Average Corruption . | . . . . . Corruption Purged . | . . . . . Corruption Blocked . | . . . . . Overload Shots . | . . . . . Overflow Damage 49 | . 7 . . 42 Projectiles . | . . . . . Explosions 7 | . 7 . . . Melee 42 | . . . . 42 Knockbacks . | . . . . . Impact . | . . . . . Kinetic . | . . . . . Secondary . | . . . . . Self-Inflicted Damage 147 | . 84 42 21 . Shots 7 | . 4 2 1 . Rammed 1 | . 1 . . . Targets Rammed 1 | . 1 . . . Kicked . | . . . . . Crushed . | . . . . . Highest Temperature 191 | 142 120 . 16 191 Average Temperature 62 | 74 53 . 9 69 Received Heat Transfer 336 | . 135 . 111 90 Siege Activations . | . . . . . Martial Activations . | . . . . . Shielding Activations . | . . . . . Robots Disrupted . | . . . . . Combat Hostiles . | . . . . . Robots Corrupted . | . . . . . Combat Hostiles . | . . . . . Parts Fried 1 | . . . . 1 Impact Corruptions 1 | . . . . 1 Robots Melted . | . . . . . Combat Hostiles . | . . . . . Parts Melted 2 | . 1 . 1 . Heat Transferred 927 | 371 149 . 111 296 Parts Sabotaged . | . . . . . Parts Stolen . | . . . . . Parts Stripped . | . . . . . Power Chain Reactions . | . . . . . Alert | -11 -10 -10 -10 -8 ------- Run | Yrd Mat Min Sub Mat Maximum Alert Level 1 | . 1 . . . Low Security (%) 98 | 100 97 100 . 100 Level 1 1 | . 2 . . . Level 2 . | . . . . . Level 3 . | . . . . . Level 4 . | . . . . . Level 5 . | . . . . . High Security . | . . . . . Max Security . | . . . . . Peak Influence 212 | . 212 160 . 66 Initial 53 | . . 53 . . Average 65 | . 83 54 . 26 Influence Increases 996 | . 435 190 175 196 Destroy 0b10 Robot/C 560 | . 220 120 120 100 Destroy 0b10 Robot/NC 55 | . 20 30 . 5 Destroy Leader 116 | . 54 20 10 32 Successful Hack 43 | . 29 . . 14 Disable Machine 30 | . 30 . . . Destroy Structure 72 | . 52 20 . . Partial Spotted 15 | . . . . 15 Lose Combat Pursuer 105 | . 30 . 45 30 Influence Decreases 996 | . 297 328 175 196 Entered New Map 85 | . . 85 . . Time Decay 815 | . 297 233 165 120 Lost Part 30 | . . 10 10 10 Purge Threat 66 | . . . . 66 Squads Dispatched 2 | . 1 1 . . Investigation 1 | . . 1 . . Extermination . | . . . . . Reinforcement 1 | . 1 . . . Assault . | . . . . . Garrison . | . . . . . Intercept . | . . . . . Searches Triggered . | . . . . . Construction Impeded . | . . . . . Haulers Reinforced . | . . . . . Active Scanning Responses . | . . . . . Cargo Convoy Interrupts . | . . . . . Stealth | -11 -10 -10 -10 -8 --------- Run | Yrd Mat Min Sub Mat Distress Signals 1 | . 1 . . . Communications Jammed . | . . . . . Distress Signals . | . . . . . Times Spotted 49 | . 20 6 14 9 Peak Tracking Total 5 | . 5 3 3 3 Tactical Retreats 4 | . 1 . 2 1 Traps | -11 -10 -10 -10 -8 ------- Run | Yrd Mat Min Sub Mat Traps Triggered 2 | . 2 . . . Indirectly . | . . . . . Trap Hack Attempts . | . . . . . Triggered . | . . . . . Disarmed . | . . . . . Reprogrammed . | . . . . . Reused 2 | . . . 2 . Traps Extracted . | . . . . . Installed 2 | . . . 2 . Triggered . | . . . . . Most Traps Carried 2 | . . 2 2 . Machines | -11 -10 -10 -10 -8 ---------- Run | Yrd Mat Min Sub Mat Machines Disabled 3 | . 2 . 1 . Max in Single Turn 1 | . 1 . 1 . Machines Repaired . | . . . . . Machines Dismantled . | . . . . . Machines Sabotaged . | . . . . . Overloaded Fab Kills . | . . . . . Hacking | -11 -10 -10 -10 -8 --------- Run | Yrd Mat Min Sub Mat Machines Accessed 12 | . 6 1 2 3 Terminals 7 | . 5 . . 2 Fabricators . | . . . . . Repair Stations . | . . . . . Recycling Units 1 | . 1 . . . Scanalyzers 1 | . . . . 1 Garrison Access . | . . . . . Total Hacks 31 | . 14 1 4 12 Successful 20 | . 8 1 4 7 Failed 11 | . 6 . . 5 Catastrophic 2 | . 1 . . 1 Database Lockouts . | . . . . . Manual 9 | . 6 . . 3 Terminals 19 | . 13 . . 6 Fabricators . | . . . . . Repair Stations . | . . . . . Recycling Units 1 | . 1 . . . Scanalyzers 6 | . . . . 6 Garrison Access . | . . . . . Terminal Hacks 9 | . 3 1 4 1 Record 3 | . . . 3 . Prototype ID Bank 1 | . 1 . . . Open Door 1 | . . 1 . . Branch Access Points 1 | . 1 . . . Unreport Threat 1 | . . . . 1 Zone Layout 1 | . 1 . . . Proto ID Catalog 1 | . . . 1 . Fabricator Hacks . | . . . . . Repair Station Hacks . | . . . . . Recycling Unit Hacks 1 | . 1 . . . Retrieve Components 1 | . 1 . . . Scanalyzer 4 | . . . . 4 Retrieve Study 4 | . . . . 4 Garrison Access Hacks . | . . . . . Unauthorized Hacks 6 | . 4 . . 2 Terminals 6 | . 4 . . 2 Botnet 6 | . 4 . . 2 Fabricators . | . . . . . Repair Stations . | . . . . . Recycling Units . | . . . . . Scanalyzers . | . . . . . Garrison Access . | . . . . . Data Cores Recovered . | . . . . . Used . | . . . . . Hacking Detections 7 | . 5 . . 2 Full Trace Events . | . . . . . Feedback Events . | . . . . . Feedback Blocked . | . . . . . Robot Schematics Acquired . | . . . . . Robots Built . | . . . . . Authchips . | . . . . . Time . | . . . . . Total Robot Build Rating . | . . . . . Part Schematics Acquired . | . . . . . Parts Built . | . . . . . Authchips . | . . . . . Time . | . . . . . Total Part Build Rating . | . . . . . Part Studies Acquired 4 | . . . . 4 Parts Repaired . | . . . . . Time . | . . . . . Parts Recycled . | . . . . . Recycled Matter . | . . . . . Retrieved Matter . | . . . . . Retrieved Components 2 | . 2 . . . Parts Scanalyzed . | . . . . . Part Schematics Acquired . | . . . . . Parts Damaged . | . . . . . Bothacking | -11 -10 -10 -10 -8 ------------ Run | Yrd Mat Min Sub Mat Used RIF Installer . | . . . . . Robots Hacked . | . . . . . Non-combat . | . . . . . Combat . | . . . . . Robot Hacks Applied . | . . . . . Relay Couplers Released . | . . . . . Fabnet Peak Effective % . | . . . . . Robots Rewired . | . . . . . Allies Hacked . | . . . . . Hacks Repelled . | . . . . . Allies | -11 -10 -10 -10 -8 -------- Run | Yrd Mat Min Sub Mat Total Allies . | . . . . . Largest Group . | . . . . . Highest-Rated Group . | . . . . . Highest-Rated Ally . | . . . . . Total Orders . | . . . . . Ally Attacks . | . . . . . Total Damage . | . . . . . Kills . | . . . . . Allies Corrupted . | . . . . . Allies Melted . | . . . . . Intel | -11 -10 -10 -10 -8 ------- Run | Yrd Mat Min Sub Mat Active Infowar (turns) . | . . . . . Robot Analysis Total . | . . . . . Derelict Logs Recovered 4 | . . 2 2 . Drone Launches . | . . . . . Drone Recoveries . | . . . . . Exploration | -11 -10 -10 -10 -8 ------------- Run | Yrd Mat Min Sub Mat Turns Passed 3249 | 24 1053 575 1295 302 Spaces Moved 2043 | 2 561 338 918 224 Core . | . . . . . Treads 657 | 2 561 94 . . Legs . | . . . . . Wheels 1386 | . . 244 918 224 Hover . | . . . . . Flight . | . . . . . Fastest Speed 95 | 160 160 110 95 95 Average Speed 127 | 160 160 133 111 99 Slowest Speed 160 | 160 160 160 125 110 Overloaded Moves . | . . . . . Propulsion Burnouts . | . . . . . Robots Hopped . | . . . . . Potential Cave-ins . | . . . . . Cave-ins Triggered . | . . . . . Exploration Rate (%) 51 | 2 94 94 49 18 Regions Visited 4 Branch Regions 2 Pre-discovered Areas 2 | . . . 2 . Known Exits Taken 1 | . 1 . . . Unknown Exits Taken 3 | 1 . 1 1 . Scrap Searched 3 | . . 1 2 . Spaces Dug 52 | . 38 . 14 . Terrain Destroyed 89 | . 50 25 14 . Melee . | . . . . . Projectile . | . . . . . AOE 89 | . 50 25 14 . Terrain Rammed . | . . . . . Walls Destroyed . | . . . . . Machines Disabled . | . . . . . Actions | -11 -10 -10 -10 -8 --------- Run | Yrd Mat Min Sub Mat Total 2486 | 11 650 434 1118 273 Wait 199 | . 25 60 102 12 Move 2039 | 1 560 337 917 224 Hop . | . . . . . Pick Up 37 | . 11 8 10 8 Fast Attach 10 | . 5 . 3 2 Attach 9 | . . 1 4 4 Detach . | . . . . . Swap 32 | 2 10 4 15 1 Drop 26 | 2 4 6 9 5 Fire 111 | 6 34 18 38 15 Melee 20 | . . . 18 2 Ram . | . . . . . Kick . | . . . . . Crush 1 | . 1 . . . Escape Stasis . | . . . . . Rewire . | . . . . . Trap 2 | . . . 2 . Miscellaneous . | . . . . . Route ------- -11/Scrapyard -10/Materials (discovered 4 exits: [*Mat x3] / *Min) -10/Mines (discovered 3 exits: [*Mat x2] / *Sub) -10/Subcaves -8/Materials (discovered 1 exit: Fac) History --------- Turn | Location | Event 14 | -11/Scrapyard | Discovered new exit (range 1) 25 | -11/Scrapyard | Entered Materials 242 | -10/Materials | Discovered new exit (range 8) 300 | -10/Materials | Build established: Mutant 469 | -10/Materials | Discovered new exit (range 6) 753 | -10/Materials | Discovered new exit (range 9) 873 | -10/Materials | Discovered new exit (range 15) 910 | -10/Materials | Identified exit to Mines 1078 | -10/Materials | Entered Mines 1165 | -10/Mines | Discovered new exit (range 7) 1262 | -10/Mines | Discovered new exit (range 8) 1324 | -10/Mines | Met a Derelict shopkeep closing up shop 1327 | -10/Mines | Learned Materials emergency access door positions 1474 | -10/Mines | Learned 2 Materials zone layouts 1586 | -10/Mines | Found a hidden stash of uninstalled traps 1636 | -10/Mines | Discovered new exit (range 6) 1653 | -10/Mines | Entered Subcaves 1824 | -10/Subcaves | Visited Clippyterm 1828 | -10/Subcaves | Learned location of Deep Caves (-7) 1976 | -10/Subcaves | Disturbed a concealed Subdweller 1993 | -10/Subcaves | Core integrity fell below 50% 2023 | -10/Subcaves | Discovered new exit (range 14) 2024 | -10/Subcaves | Learned location of Zion (-7) 2024 | -10/Subcaves | Met a Zionite searching for "candidates" 2250 | -10/Subcaves | Learned 4 Materials zone layouts 2360 | -10/Subcaves | A swath of the cavern ceiling suddenly collapsed 2529 | -10/Subcaves | Shifting Twisted Machinery released Barrage Gun 2561 | -10/Subcaves | Learned Materials terminal intel 2602 | -10/Subcaves | Shifting Twisted Machinery released Sub. Optics 2644 | -10/Subcaves | Visited 4L-MR0's lab 2672 | -10/Subcaves | Core integrity fell below 20% 2694 | -10/Subcaves | Lost 3 parts (2n1w) 2695 | -10/Subcaves | Found Power Bank 2698 | -10/Subcaves | Found Prototype Device 2698 | -10/Subcaves | Identified Sfc. Transmogrifier 2948 | -10/Subcaves | Entered Materials 2948 | -8/Materials | Evolved 4 slots: Propulsion x1, Utility x2, Weapon x1 2949 | -8/Materials | Identified exit to Factory 2951 | -8/Materials | Loaded intel: 12 terminal locations 3250 | -8/Materials | Self-destructed Last Messages --------------- 03169_ G-47 Trooper destroyed. 03173_ Acquired 40 matter. 03219_ Electrolysis Chamber disabled. 03220_ K-01 Serf collects debris. 03230_ Y-45 Defender destroyed. 03239_ Dropped Lgt. Ion Engine. 03239_ Acquired Nuclear Core. 03241_ Dropped Imp. Ion Engine. 03241_ Acquired Nuclear Core. 03243_ Connecting with Terminal... >>Trojan(Botnet) Trojan loaded successfully. Testing... Terminal linked with 1 system. Awaiting botnet instructions. >>Alert(Purge) Purged threat record, alert level lowered. 03247_ Dropped Lgt. Nuclear Core. 03247_ Acquired Lgt. Treads. 03249_ Acquired 60 matter. Map ----- +----------------------------------------------------+ | ?????????????????????????????????????????????????? | | ?????????????????????????????????????????????????? | | ?????????????????????????????????????????????????? | | ?????????????????????????????????????????????????? | | ?????????????????????????????????????????????????? | | ?????????????????????????????????????????????????? | | ?????????????????????????????????????????????????? | | ?????????????????????????????????????????????????? | | ?????????????????????????????????????????????????? | | ?????????????????????????????????????????????????? | | ?????????????????????????????????????????????????? | | ?????????????????????????????????????????????????? | | ?????????????????????????????????????????????????? | | ?????????????????????????????????????????????????? | | ?????????????????????????????????????????????????? | | ?????????????????????????????????????????????????? | | ?????????????????????????????????????????????????? | | ?????????????????????????????????????????????????? | | #????????????????????????????????????????????????? | | ????????????????????????????????????????????????? | | ????????????????????????????????????????????????? | | ????????????????????????????????????????????????? | | ????????????????????????????????????????????????? | | ????????????????????????????????????????????????? | | ???????????????????????###??????????????????????? | | ??????????? ??????######@####???????????????????? | | ??????????? ??????# T ![[ !#???????????????????? | | ??????????? ??????# * * #???????????????????? | | ####+####### #?????# !! #???????????????????? | | #?????#* !! #???????????????????? | | #?????# !!! "" #???????????????????? | | ^ ^ #?????# "" #???????????????????? | | #?????# ! "" #???????????????????? | | #?????#= #???????????????????? | | #?????#####+#######?????????????????? | | """ ########## ## #?????????????????? | | """ " " + "" #?????????????????? | | """ "R" ## "" #?????????????????? | | """ """ ## "T #?????????????????? | | ## "" #?????????????????? | | ## "" #?????????????????? | | ######## """" ## #????###########??? | | # # """" ## [ #????# #??? | | # "" # """" ## #????# #??? | | + ""S # #####+###### ! #??? | | # "" # !![ ## #??? | | # # + """ """ #??? | | # # ############# ## """ """ #??? | | ######### #???????????# ## """ """ #??? | | ???????# ############# ## #??? | +----------------------------------------------------+ Best States ------------- Heat Dissipation 39 Energy Generation 10 Energy Capacity 250 Matter Stores 300 Matter Capacity 700 Sight Range 16 Terrain Scan Density 10 Armor Coverage 800 Evasion (%) 41 Targeting Accuracy 8 Recoil Reduction 2 Item Schematics ----------------- None Robot Schematics ------------------ None Fabricated ------------ Nothing Repaired ---------- Nothing Studied --------- Field Laser | -8/Materials | Hacked Grenade Launcher | -8/Materials | Hacked Hvy. Assault Rifle | -8/Materials | Hacked EM Pulse Cannon | -8/Materials | Hacked Alien Tech Used ----------------- None Achievements -------------- None Challenges ------------ None Game ------ Seed DerelictSapperCalibrator Manual? 0 Play Time 00:21:00 Cumulative 196.6 hours Start 2026.06.24 @ 23:03:10 End 2026.06.24 @ 23:25:56 Sessions 1 Manual Loads 0 Difficulty Rogue Special Mode None Game No. 160 Rogue 160 Adventurer 0 Explorer 0 Win Type - Total 3 Types 3/0/0/0/0/0/0/0/0/0 Lore% 76 Gallery% 66 Achievement% 56 Wizard Run 0 Options --------- Layout 2 ASCII 0 Keyboard 0 Movement Mouse Keybinds 0 Fullscreen 1 Font 24/Smallcaps Map View 50x44 Zoom Use 0% Tactical HUD 1 Map Filters NONE Filters NONE Steam 1 RUN: 69afdf61-4907-44ce-990f-f09aede9b2c3